fUST/lending_fUST_20240615
["ID","MTS","AMOUNT","RATE_DAILY","PERIOD"]
[329465633,1718381466107,-500.0,0.00016978,2]
[329465635,1718381466120,-500.0,0.00016978,2]
[329465637,1718381466136,-1723.33729599,0.00016978,2]
[329465640,1718381466190,-1322.0,0.00016978,2]
[329465641,1718381466224,-1062.27270401,0.00016978,2]
[329465644,1718381466336,-218.98623559,0.00016978,2]
[329465647,1718381466447,-281.01376441,0.00016978,2]
[329465649,1718381466465,-500.0,0.00016978,2]
[329465652,1718381466512,-500.0,0.00016978,2]
[329465654,1718381466535,-143.98623569,0.00016978,2]
[329465655,1718381466593,-1428.42376431,0.00016978,2]
[329465657,1718381466605,-500.0,0.00016978,2]
[329465659,1718381466621,-2370.06871056,0.00016978,2]
[329465662,1718381466663,-343.40726109,0.00016978,2]
[329465673,1718381467020,-151.0,0.00016705,2]
[329465676,1718381467052,-151.0,0.00016705,2]
[329465678,1718381467073,-151.0,0.00016705,2]
[329465681,1718381467098,-1186.44402835,0.00016978,2]
[329465682,1718381467122,-3899.92,0.00016978,2]
[329465684,1718381467169,-1284.63597167,0.00016978,2]
[329465685,1718381467187,-416.6733073,0.00016978,2]
[329465688,1718381467200,-595.2,0.00016978,2]
[329465690,1718381467250,-1603.41072103,0.00016978,2]
[329465691,1718381467262,-500.0,0.00016978,2]
[329465693,1718381467301,-500.0,0.00016978,2]
[329465696,1718381467319,-556.83,0.00016978,2]
[329465697,1718381467345,-556.83,0.00016978,2]
[329465699,1718381467370,-556.83,0.00016978,2]
[329465701,1718381467413,-500.0,0.00016978,2]
[329465704,1718381467476,-703.03,0.00016978,2]
[329465706,1718381467505,-500.0,0.00016978,2]
[329465708,1718381467536,-427.51250523,0.00016979,2]
[329465709,1718381467567,-500.0,0.00016979,2]
[329465711,1718381467603,-180.0,0.00016979,2]
[329465713,1718381467636,-180.0,0.00016979,2]
[329465715,1718381467672,-180.0,0.00016979,2]
[329465717,1718381467696,-180.0,0.00016979,2]
[329465719,1718381467724,-180.0,0.00016979,2]
[329465721,1718381467767,-180.0,0.00016979,2]
[329465722,1718381467793,-180.0,0.00016979,2]
[329465724,1718381467836,-180.0,0.00016979,2]
[329465725,1718381467896,-500.0,0.00016979,2]
[329465726,1718381467940,-500.0,0.00016979,2]
[329465728,1718381467990,-500.0,0.00016979,2]
[329465730,1718381468012,-500.0,0.00016979,2]
[329465733,1718381468052,-500.0,0.00016979,2]
[329465736,1718381468093,-500.0,0.00016979,2]
[329465738,1718381468138,-680.54,0.00016979,2]
[329465739,1718381468173,-500.0,0.00016979,2]
[329465744,1718381468289,-500.0,0.00016979,2]
[329465746,1718381468301,-500.0,0.00016979,2]
[329465748,1718381468353,-250.0,0.00016979,2]
[329465750,1718381468386,-537.36362719,0.00016979,2]
[329465751,1718381468397,-500.0,0.00016979,2]
[329465753,1718381468408,-503.41070682,0.00016979,2]
[329465756,1718381468482,-500.0,0.00016979,2]
[329465759,1718381468576,-513.0,0.00016979,2]
[329465762,1718381468631,-500.0,0.00016979,2]
[329465764,1718381468693,-500.0,0.00016979,2]
[329465766,1718381468709,-500.0,0.00016979,2]
[329465769,1718381468828,-500.0,0.00016979,2]
[329465770,1718381468869,-502.93715686,0.00016979,2]
[329465772,1718381468921,-500.0,0.00016979,2]
[329465773,1718381468976,-500.0,0.00016979,2]
[329465775,1718381469005,-500.0,0.00016979,2]
[329465776,1718381469063,-500.0,0.00016979,2]
[329465779,1718381469139,-500.0,0.00016979,2]
[329465780,1718381469166,-298.09295366,0.00016979,2]
[329465784,1718381469248,-3283.07,0.00016979,2]
[329465786,1718381469266,-500.0,0.00016979,2]
[329465788,1718381469287,-500.0,0.00016979,2]
[329465790,1718381469341,-500.0,0.00016979,2]
[329465791,1718381469364,-500.0,0.00016979,2]
[329465793,1718381469405,-500.0,0.00016979,2]
[329465795,1718381469473,-500.0,0.00016979,2]
[329465800,1718381469696,-500.0,0.00016979,2]
[329465802,1718381469805,-552.32294094,0.00016979,2]
[329465803,1718381469850,-500.0,0.00016979,2]
[329465805,1718381469893,-500.0,0.00016979,2]
[329465807,1718381469908,-674.2,0.00016979,2]
[329465808,1718381469920,-573.19,0.00016979,2]
[329465813,1718381470056,-500.0,0.00016979,2]
[329465815,1718381470110,-500.0,0.00016979,2]
[329465817,1718381470270,-500.0,0.00016979,2]
[329465819,1718381470317,-500.0,0.00016979,2]
[329465821,1718381470369,-500.0,0.00016979,2]
[329465824,1718381470480,-500.0,0.00016979,2]
[329465826,1718381470522,-1580.79131546,0.00016979,2]
[329465828,1718381470615,-224.53868454,0.00016979,2]
[329465831,1718381470627,-54.12307797,0.00016979,2]
[329465832,1718381470648,-703.7636435,0.00016979,2]
[329465834,1718381470665,-466.0,0.00016979,2]
[329465837,1718381470724,-1000.0,0.00016979,2]
[329465838,1718381470869,-1676.03327853,0.00016979,2]
[329465839,1718381470884,-310.85025111,0.00016979,2]
[329465840,1718381470906,-500.0,0.00016979,2]
[329465841,1718381470924,-520.07627658,0.00016979,2]
[329465842,1718381470937,-500.0,0.00016979,2]
[329465843,1718381470983,-500.0,0.00016979,2]
[329465844,1718381470995,-556.83,0.00016979,2]
[329465845,1718381471008,-556.83,0.00016979,2]
[329465846,1718381471020,-181.14839902,0.00016979,2]
[329465849,1718381471049,-500.0,0.00016979,2]
[329465851,1718381471101,-252.13605508,0.0001698,2]
[329465852,1718381471134,-502.35417632,0.0001698,2]
[329465853,1718381471176,-500.0,0.0001698,2]
[329465856,1718381471206,-500.0,0.0001698,2]
[329465858,1718381471229,-500.0,0.0001698,2]
[329465860,1718381471270,-500.0,0.0001698,2]
[329465862,1718381471297,-500.0,0.0001698,2]
[329465864,1718381471352,-500.0,0.0001698,2]
[329465865,1718381471404,-500.0,0.00016981,2]
[329465867,1718381471436,-500.0,0.00016999,2]
[329465868,1718381471463,-1000.0,0.00017,4]
[329465869,1718381471500,-500.0,0.00017251,2]
[329465870,1718381471530,-500.0,0.00017251,2]
[329465871,1718381471564,-3630.82,0.00017251,2]
[329465872,1718381471597,-255.48,0.00017252,2]
[329465873,1718381471615,-500.0,0.00017252,2]
[329465874,1718381471626,-160.34758777,0.00017252,2]
[329465875,1718381471636,-500.0,0.00017252,2]
[329465876,1718381471660,-4107.61,0.00017252,2]
[329465877,1718381471709,-500.0,0.00017252,2]
[329465878,1718381471741,-500.0,0.00017252,2]
[329465879,1718381471756,-500.0,0.00017252,2]
[329465880,1718381471815,-1572.41,0.00017252,2]
[329465881,1718381471865,-3899.92,0.00017252,2]
[329465882,1718381471879,-500.0,0.00017252,2]
[329465883,1718381471900,-556.83,0.00017252,2]
[329465884,1718381471912,-703.03,0.00017252,2]
[329465885,1718381471960,-500.0,0.00017252,2]
[329465886,1718381471988,-500.0,0.00017253,2]
[329465887,1718381472037,-500.0,0.00017253,2]
[329465888,1718381472050,-500.0,0.00017253,2]
[329465889,1718381472072,-500.0,0.00017253,2]
[329465890,1718381472095,-500.0,0.00017253,2]
[329465891,1718381472113,-500.0,0.00017253,2]
[329465892,1718381472144,-500.0,0.00017253,2]
[329465893,1718381472182,-680.54,0.00017253,2]
[329465894,1718381472204,-500.0,0.00017253,2]
[329465895,1718381472215,-500.0,0.00017253,2]
[329465896,1718381472241,-250.0,0.00017253,2]
[329465897,1718381472297,-500.0,0.00017253,2]
[329465898,1718381472318,-500.0,0.00017253,2]
[329465899,1718381472331,-500.0,0.00017253,2]
[329465900,1718381472393,-500.0,0.00017253,2]
[329465901,1718381472414,-178.57054375,0.00017253,2]
[329465902,1718381472434,-500.0,0.00017253,2]
[329465903,1718381472447,-500.0,0.00017253,2]
[329465904,1718381472501,-500.0,0.00017253,2]
[329465905,1718381472529,-500.0,0.00017253,2]
[329465906,1718381472557,-500.0,0.00017253,2]
[329465908,1718381472621,-3283.07,0.00017253,2]
[329465909,1718381472642,-500.0,0.00017253,2]
[329465911,1718381472657,-303.58452641,0.00017253,2]
[329465913,1718381472668,-500.0,0.00017253,2]
[329465915,1718381472678,-500.0,0.00017253,2]
[329465916,1718381472726,-500.0,0.00017253,2]
[329465920,1718381472782,-500.0,0.00017253,2]
[329465922,1718381472796,-500.0,0.00017253,2]
[329465925,1718381472836,-500.0,0.00017253,2]
[329465927,1718381472856,-500.0,0.00017253,2]
[329465928,1718381472887,-674.2,0.00017253,2]
[329465930,1718381472903,-573.19,0.00017253,2]
[329465933,1718381472974,-500.0,0.00017253,2]
[329465935,1718381472989,-500.0,0.00017253,2]
[329465937,1718381473007,-500.0,0.00017253,2]
[329465939,1718381473018,-500.0,0.00017253,2]
[329465942,1718381473056,-500.0,0.00017253,2]
[329465943,1718381473075,-1805.33,0.00017253,2]
[329465945,1718381473087,-3899.92,0.00017253,2]
[329465947,1718381473132,-514.81433297,0.00017253,2]
[329465950,1718381473145,-500.0,0.00017253,2]
[329465952,1718381473165,-500.0,0.00017253,2]
[329465955,1718381473188,-556.83,0.00017253,2]
[329465957,1718381473213,-500.0,0.00017253,2]
[329465959,1718381473240,-500.0,0.00017254,2]
[329465961,1718381473260,-500.0,0.00017254,2]
[329465963,1718381473277,-500.0,0.00017254,2]
[329465965,1718381473297,-6037.24457271,0.00017256,2]
[329465977,1718381473539,-770.24610134,0.00017256,2]
[329465979,1718381473586,-500.0,0.00017257,2]
[329465981,1718381473630,-56.41389866,0.00017257,2]
[329465985,1718381473724,-443.58610134,0.00017257,2]
[329465987,1718381473788,-9590.16987038,0.00017258,2]
[329465989,1718381473811,-692.20753629,0.00017299,2]
[329465990,1718381473859,-335.6,0.00017443,2]
[329465992,1718381473873,-500.0,0.00017525,2]
[329465994,1718381473898,-500.0,0.00017525,2]
[329465996,1718381473917,-3630.82,0.00017525,2]
[329465998,1718381473929,-459.9,0.00017526,2]
[329466000,1718381473942,-500.0,0.00017526,2]
[329466001,1718381473989,-4107.61,0.00017526,2]
[329466003,1718381474000,-500.0,0.00017526,2]
[329466005,1718381474068,-500.0,0.00017526,2]
[329466007,1718381474089,-500.0,0.00017526,2]
[329466009,1718381474107,-1572.41,0.00017526,2]
[329466011,1718381474127,-3899.92,0.00017526,2]
[329466012,1718381474138,-500.0,0.00017526,2]
[329466014,1718381474157,-556.83,0.00017526,2]
[329466016,1718381474178,-703.03,0.00017526,2]
[329466019,1718381474221,-500.0,0.00017526,2]
[329466020,1718381474270,-500.0,0.00017527,2]
[329466022,1718381474308,-500.0,0.00017527,2]
[329466024,1718381474392,-500.0,0.00017527,2]
[329466026,1718381474411,-500.0,0.00017527,2]
[329466028,1718381474431,-500.0,0.00017527,2]
[329466030,1718381474456,-500.0,0.00017527,2]
[329466033,1718381474524,-680.54,0.00017527,2]
[329466035,1718381474563,-500.0,0.00017527,2]
[329466037,1718381474595,-500.0,0.00017527,2]
[329466039,1718381474628,-250.0,0.00017527,2]
[329466041,1718381474658,-500.0,0.00017527,2]
[329466043,1718381474714,-371.27526496,0.00017527,2]
[329466045,1718381474735,-500.0,0.00017527,2]
[329466046,1718381474757,-500.0,0.00017527,2]
[329466048,1718381474779,-500.0,0.00017527,2]
[329466051,1718381474820,-500.0,0.00017527,2]
[329466052,1718381474847,-3283.07,0.00017527,2]
[329466054,1718381474875,-500.0,0.00017527,2]
[329466055,1718381474898,-500.0,0.00017527,2]
[329466056,1718381474908,-500.0,0.00017527,2]
[329466057,1718381474919,-500.0,0.00017527,2]
[329466058,1718381474964,-500.0,0.00017527,2]
[329466059,1718381474996,-500.0,0.00017527,2]
[329466060,1718381475009,-581.67,0.00017527,2]
[329466061,1718381475037,-500.0,0.00017527,2]
[329466062,1718381475048,-674.2,0.00017527,2]
[329466064,1718381475072,-573.19,0.00017527,2]
[329466066,1718381475112,-500.0,0.00017527,2]
[329466068,1718381475126,-500.0,0.00017527,2]
[329466070,1718381475146,-500.0,0.00017527,2]
[329466072,1718381475174,-1805.33,0.00017527,2]
[329466074,1718381475204,-3899.92,0.00017527,2]
[329466076,1718381475229,-500.0,0.00017527,2]
[329466077,1718381475241,-500.0,0.00017527,2]
[329466079,1718381475252,-500.0,0.00017527,2]
[329466081,1718381475278,-500.0,0.00017528,2]
[329466083,1718381475333,-500.0,0.00017528,2]
[329466085,1718381475348,-1753.0,0.00017582,2]
[329466086,1718381475361,-335.6,0.00017758,2]
[329466087,1718381475373,-151.0,0.00017758,2]
[329466088,1718381475400,-556.83,0.00017798,2]
[329466089,1718381475420,-500.0,0.00017799,2]
[329466090,1718381475443,-500.0,0.00017799,2]
[329466091,1718381475460,-3630.82,0.00017799,2]
[329466092,1718381475484,-500.0,0.000178,2]
[329466093,1718381475511,-500.0,0.000178,2]
[329466094,1718381475531,-4107.61,0.000178,2]
[329466095,1718381475552,-500.0,0.000178,2]
[329466096,1718381475566,-500.0,0.000178,2]
[329466097,1718381475582,-1572.41,0.000178,2]
[329466098,1718381475623,-3899.92,0.000178,2]
[329466099,1718381475649,-500.0,0.000178,2]
[329466100,1718381475664,-703.03,0.000178,2]
[329466101,1718381475675,-500.0,0.00017801,2]
[329466102,1718381475686,-500.0,0.00017801,2]
[329466103,1718381475698,-500.0,0.00017801,2]
[329466104,1718381475710,-500.0,0.00017801,2]
[329466105,1718381475730,-500.0,0.00017801,2]
[329466106,1718381475747,-500.0,0.00017801,2]
[329466107,1718381475763,-680.54,0.00017801,2]
[329466108,1718381475774,-446.75,0.00017801,2]
[329466109,1718381475787,-500.0,0.00017801,2]
[329466110,1718381475799,-250.0,0.00017801,2]
[329466111,1718381475811,-500.0,0.00017801,2]
[329466112,1718381475834,-500.0,0.00017801,2]
[329466113,1718381475845,-500.0,0.00017801,2]
[329466114,1718381475880,-500.0,0.00017801,2]
[329466115,1718381475912,-500.0,0.00017801,2]
[329466116,1718381475944,-3283.07,0.00017801,2]
[329466117,1718381475958,-500.0,0.00017801,2]
[329466118,1718381475986,-500.0,0.00017801,2]
[329466119,1718381476006,-500.0,0.00017801,2]
[329466120,1718381476040,-500.0,0.00017801,2]
[329466121,1718381476055,-674.2,0.00017801,2]
[329466122,1718381476085,-573.19,0.00017801,2]
[329466123,1718381476118,-500.0,0.00017801,2]
[329466124,1718381476145,-500.0,0.00017801,2]
[329466125,1718381476170,-1805.33,0.00017801,2]
[329466126,1718381476182,-230.1438898,0.00017801,2]
[329466127,1718381476229,-556.83,0.00017801,2]
[329466128,1718381476244,-500.0,0.00017801,2]
[329466129,1718381476299,-500.0,0.00017802,2]
[329466130,1718381476327,-500.0,0.00017802,2]
[329466133,1718381476367,-306.0,0.00017836,2]
[329466134,1718381476429,-499.0,0.0001784,2]
[329466135,1718381476465,-767.527475,0.00017846,2]
[329466136,1718381476493,-919.507541,0.00017846,2]
[329466137,1718381476521,-333.054201,0.00017846,2]
[329466138,1718381476564,-276.130747,0.00017846,2]
[329466139,1718381476587,-220.904598,0.00017846,2]
[329466140,1718381476619,-252.901696,0.00017846,2]
[329466141,1718381476671,-335.6,0.00017915,2]
[329466142,1718381476728,-151.0,0.00017915,2]
[329466143,1718381476740,-501.76676601,0.00017999,2]
[329466144,1718381476762,-1003.15021472,0.00018,2]
[329466145,1718381476782,-1000.0,0.00018,6]
[329466146,1718381476798,-600.0,0.00018045,2]
[329466147,1718381476812,-767.527475,0.00018069,2]
[329466148,1718381476838,-919.507541,0.00018069,2]
[329466149,1718381476851,-333.054201,0.00018069,2]
[329466150,1718381476865,-276.130747,0.00018069,2]
[329466151,1718381476881,-220.904598,0.00018069,2]
[329466152,1718381476907,-252.901696,0.00018069,2]
[329466153,1718381476920,-335.6,0.00018072,2]
[329466154,1718381476934,-151.0,0.00018072,2]
[329466155,1718381476947,-500.0,0.00018073,2]
[329466156,1718381476966,-500.0,0.00018073,2]
[329466157,1718381476983,-3630.82,0.00018073,2]
[329466158,1718381476994,-500.0,0.00018074,2]
[329466159,1718381477008,-500.0,0.00018074,2]
[329466160,1718381477020,-4107.61,0.00018074,2]
[329466161,1718381477039,-500.0,0.00018074,2]
[329466162,1718381477103,-500.0,0.00018074,2]
[329466163,1718381477121,-1572.41,0.00018074,2]
[329466164,1718381477137,-3899.92,0.00018074,2]
[329466165,1718381477160,-500.0,0.00018074,2]
[329466166,1718381477202,-556.83,0.00018074,2]
[329466168,1718381477214,-703.03,0.00018074,2]
[329466170,1718381477232,-500.0,0.00018075,2]
[329466171,1718381477242,-505.45610261,0.00018075,2]
[329466173,1718381477267,-500.0,0.00018075,2]
[329466175,1718381477283,-500.0,0.00018075,2]
[329466177,1718381477317,-500.0,0.00018075,2]
[329466179,1718381477327,-680.54,0.00018075,2]
[329466181,1718381477338,-500.0,0.00018075,2]
[329466182,1718381477349,-250.0,0.00018075,2]
[329466185,1718381477372,-500.0,0.00018075,2]
[329466187,1718381477386,-500.0,0.00018075,2]
[329466188,1718381477406,-3283.07,0.00018075,2]
[329466190,1718381477423,-116.23463276,0.00018075,2]
[329466192,1718381477447,-383.76536724,0.00018075,2]
[329466194,1718381477469,-500.0,0.00018075,2]
[329466196,1718381477499,-614.47120099,0.00018075,2]
[329466198,1718381477511,-500.0,0.00018075,2]
[329466200,1718381477528,-674.2,0.00018075,2]
[329466203,1718381477582,-573.19,0.00018075,2]
[329466204,1718381477599,-500.0,0.00018075,2]
[329466207,1718381477618,-500.0,0.00018075,2]
[329466209,1718381477648,-1805.33,0.00018075,2]
[329466211,1718381477666,-500.0,0.00018075,2]
[329466213,1718381477696,-505.40871016,0.00018076,2]
[329466215,1718381477729,-3899.92,0.00018199,2]
[329466216,1718381477744,-16643.71472161,0.000182,2]
[329466219,1718381477780,-1318.0,0.000182,2]
[329466225,1718381477894,-500.0,0.00016704,2]
[329466227,1718381477905,-17158.78362496,0.000182,2]
[329466229,1718381477920,-151.0,0.00018229,2]
[329466231,1718381477936,-602.88429908,0.00018233,2]
[329466233,1718381477946,-500.0,0.00018237,2]
[329466235,1718381477957,-767.527475,0.00018292,2]
[329466237,1718381477969,-919.507541,0.00018292,2]
[329466239,1718381477981,-333.054201,0.00018292,2]
[329466241,1718381477993,-276.130747,0.00018292,2]
[329466242,1718381478017,-220.904598,0.00018292,2]
[329466244,1718381478048,-252.901696,0.00018292,2]
[329466246,1718381478088,-308.34068653,0.00018338,2]
[329466249,1718381478135,-2037.29149856,0.00018338,2]
[329466251,1718381478188,-155.14890872,0.00018338,2]
[329466253,1718381478213,-181.97694132,0.00018338,2]
[329466255,1718381478244,-944.91676478,0.00018338,2]
[329466257,1718381478265,-624.31481105,0.00018339,2]
[329466259,1718381478278,-500.0,0.00018347,2]
[329466261,1718381478294,-500.0,0.00018347,2]
[329466262,1718381478305,-3630.82,0.00018347,2]
[329466263,1718381478332,-500.0,0.00018348,2]
[329466264,1718381478353,-4107.61,0.00018348,2]
[329466265,1718381478375,-500.0,0.00018348,2]
[329466266,1718381478419,-500.0,0.00018348,2]
[329466267,1718381478435,-1572.41,0.00018348,2]
[329466268,1718381478462,-3899.92,0.00018348,2]
[329466269,1718381478478,-500.0,0.00018348,2]
[329466270,1718381478492,-556.83,0.00018348,2]
[329466271,1718381478506,-703.03,0.00018348,2]
[329466272,1718381478519,-506.98491406,0.00018349,2]
[329466273,1718381478541,-500.0,0.00018349,2]
[329466274,1718381478565,-485.93,0.00018349,2]
[329466275,1718381478578,-500.0,0.00018349,2]
[329466276,1718381478596,-680.54,0.00018349,2]
[329466277,1718381478609,-376.150031,0.00018349,2]
[329466278,1718381478636,-500.0,0.00018349,2]
[329466279,1718381478648,-500.0,0.00018349,2]
[329466280,1718381478668,-3283.07,0.00018349,2]
[329466281,1718381478688,-500.0,0.00018349,2]
[329466282,1718381478732,-500.0,0.00018349,2]
[329466283,1718381478768,-500.0,0.00018349,2]
[329466284,1718381478780,-674.2,0.00018349,2]
[329466285,1718381478810,-573.19,0.00018349,2]
[329466286,1718381478821,-500.0,0.00018349,2]
[329466287,1718381478860,-500.0,0.00018349,2]
[329466288,1718381478885,-500.0,0.00018349,2]
[329466289,1718381478916,-1805.33,0.00018349,2]
[329466290,1718381478941,-3899.92,0.00018349,2]
[329466291,1718381478968,-500.0,0.00018349,2]
[329466292,1718381478992,-335.6,0.00018387,2]
[329466294,1718381479010,-151.0,0.00018387,2]
[329466296,1718381479044,-305.0,0.0001846,2]
[329466298,1718381479105,-6751.86493708,0.00018499,2]
[329466299,1718381479118,-160.0,0.00018511,2]
[329466300,1718381479160,-556.83,0.00018514,2]
[329466301,1718381479198,-767.527475,0.00018515,2]
[329466302,1718381479235,-919.507541,0.00018515,2]
[329466303,1718381479264,-333.054201,0.00018515,2]
[329466304,1718381479324,-276.130747,0.00018515,2]
[329466305,1718381479341,-220.904598,0.00018515,2]
[329466306,1718381479374,-252.901696,0.00018515,2]
[329466307,1718381479401,-151.0,0.00018544,2]
[329466308,1718381479438,-500.0,0.00018621,2]
[329466309,1718381479457,-500.0,0.00018621,2]
[329466310,1718381479480,-3630.82,0.00018621,2]
[329466311,1718381479505,-500.0,0.00018622,2]
[329466312,1718381479552,-500.0,0.00018622,2]
[329466313,1718381479580,-4107.61,0.00018622,2]
[329466314,1718381479601,-500.0,0.00018622,2]
[329466315,1718381479636,-528.59,0.00018622,2]
[329466316,1718381479647,-1572.41,0.00018622,2]
[329466317,1718381479763,-3899.92,0.00018622,2]
[329466318,1718381479786,-3899.92,0.00018622,2]
[329466319,1718381479829,-3899.92,0.00018622,2]
[329466320,1718381479856,-3899.92,0.00018622,2]
[329466321,1718381479875,-500.0,0.00018622,2]
[329466322,1718381479898,-3899.96,0.00018622,2]
[329466323,1718381479928,-703.03,0.00018622,2]
[329466324,1718381479988,-500.0,0.00018623,2]
[329466325,1718381480020,-500.0,0.00018623,2]
[329466326,1718381480038,-680.54,0.00018623,2]
[329466327,1718381480092,-500.0,0.00018623,2]
[329466328,1718381480169,-500.0,0.00018623,2]
[329466329,1718381480193,-3283.07,0.00018623,2]
[329466330,1718381480248,-500.0,0.00018623,2]
[329466331,1718381480262,-500.0,0.00018623,2]
[329466332,1718381480289,-500.0,0.00018623,2]
[329466333,1718381480322,-674.2,0.00018623,2]
[329466334,1718381480348,-573.19,0.00018623,2]
[329466335,1718381480365,-500.0,0.00018623,2]
[329466336,1718381480385,-1805.33,0.00018623,2]
[329466337,1718381480398,-500.0,0.00018623,2]
[329466338,1718381480423,-250.0,0.0001863,2]
[329466339,1718381480463,-335.6,0.00018701,2]
[329466340,1718381480504,-151.0,0.00018701,2]
[329466341,1718381480531,-556.83,0.00018737,2]
[329466342,1718381480567,-767.527475,0.00018738,2]
[329466343,1718381480585,-919.507541,0.00018738,2]
[329466344,1718381480644,-333.054201,0.00018738,2]
[329466345,1718381480679,-276.130747,0.00018738,2]
[329466346,1718381480733,-220.904598,0.00018738,2]
[329466347,1718381480753,-252.901696,0.00018738,2]
[329466348,1718381480797,-153.0,0.00018795,2]
[329466349,1718381480835,-153.0,0.00018795,2]
[329466350,1718381480852,-551.39540687,0.00018795,2]
[329466351,1718381480892,-274.75342157,0.00018795,2]
[329466352,1718381480924,-154.98450155,0.00018795,2]
[329466353,1718381480935,-720.74038188,0.00018796,2]
[329466354,1718381480947,-500.0,0.00018796,2]
[329466355,1718381480958,-494.22233255,0.00018797,2]
[329466356,1718381480988,-164.59629886,0.00018797,2]
[329466357,1718381481013,-302.72476705,0.00018797,2]
[329466358,1718381481037,-2812.13279208,0.00018797,2]
[329466359,1718381481072,-1294.52780377,0.00018797,2]
[329466360,1718381481083,-1498.62078344,0.00018797,2]
[329466361,1718381481094,-691.28568206,0.00018797,2]
[329466362,1718381481130,-1342.40609524,0.00018797,2]
[329466363,1718381481176,-281.85605547,0.00018797,2]
[329466364,1718381481188,-215.95975088,0.00018797,2]
[329466365,1718381481198,-1903.43712619,0.00018797,2]
[329466366,1718381481208,-1269.45637468,0.00018797,2]
[329466367,1718381481219,-540.39540835,0.00018797,2]
[329466368,1718381481236,-267.81459569,0.00018798,2]
[329466369,1718381481247,-394.20283113,0.00018798,2]
[329466370,1718381481258,-322.55134041,0.00018798,2]
[329466371,1718381481270,-500.0,0.00018798,2]
[329466372,1718381481285,-151.0,0.00018858,2]
[329466373,1718381481297,-8220.86720457,0.0001888,2]
[329466374,1718381482484,-340.83,0.0001888,2]
[329466375,1718381482561,-7135.588721,0.0001888,2]
[329466376,1718381482609,-5328.55195475,0.0001888,2]
[329466377,1718381482746,-160.26509469,0.00016704,2]
[329466378,1718381482776,-176.30296992,0.00016705,2]
[329467803,1718381557979,39716.44235,0.00025,60]
[329467922,1718382296653,217.1595199,0.00014794,2]
[329467924,1718382354238,3121.53793359,0.00014999,4]
[329467925,1718382357575,2038.11981352,0.00014999,2]
[329467926,1718382390186,-163.92327942,0.00015004,2]
[329469692,1718382569744,-614.27696662,0.00015003,4]
[329469695,1718382569827,-614.27696662,0.00015003,4]
[329469696,1718382569884,-172.2116397,0.00015003,4]
[329469738,1718382573250,-4554.09863732,0.00015002,2]
[329469740,1718382573314,-1720.77236065,0.00015003,4]
[329469741,1718382573348,-572.79623384,0.00015005,2]
[329469895,1718382586918,-819.55734754,0.00027,120]
[329469987,1718382594465,-423.57501096,0.00015005,2]
[329469989,1718382594554,-218.71726712,0.00015204,2]
[329469991,1718382594631,-213.46984658,0.00015204,2]
[329469993,1718382594675,-300.0,0.00015254,2]
[329469994,1718382594728,-66.65613694,0.00015254,2]
[329470472,1718382636831,-3267.2968766,0.00015255,2]
[329470473,1718382636856,-165.090048,0.00016164,2]
[329470474,1718382636888,-275.75376351,0.000165,2]
[329470475,1718382636910,-3121.53793359,0.00016698,4]